fUST/lending_fUST_20250531
["ID","MTS","AMOUNT","RATE_DAILY","PERIOD"]
[363250853,1748649033874,-430.0,0.00016438,2]
[363250854,1748649033884,-430.0,0.00016438,2]
[363250855,1748649033895,-430.0,0.00016438,2]
[363250856,1748649033904,-430.0,0.00016438,2]
[363250857,1748649033914,-1063.45,0.00016438,2]
[363250858,1748649033924,-430.0,0.00016438,2]
[363250859,1748649033934,-202.66,0.00016438,2]
[363250860,1748649033944,-500.0,0.00016465,2]
[363250861,1748649033954,-500.0,0.00016493,2]
[363250862,1748649033964,-500.0,0.0001652,2]
[363250863,1748649033975,-196.0,0.00016548,2]
[363250864,1748649033984,-220.40028707,0.00016611,2]
[363250865,1748649033995,-430.0,0.00016712,2]
[363250866,1748649034005,-430.0,0.00016712,2]
[363250867,1748649034015,-430.0,0.00016712,2]
[363250868,1748649034026,-450.0,0.00016712,2]
[363250869,1748649034036,-430.0,0.00016712,2]
[363250870,1748649034047,-430.0,0.00016712,2]
[363250871,1748649034058,-430.0,0.00016712,2]
[363250872,1748649034068,-430.0,0.00016712,2]
[363250873,1748649034078,-430.0,0.00016712,2]
[363250874,1748649034088,-430.0,0.00016712,2]
[363250875,1748649034097,-430.0,0.00016712,2]
[363250876,1748649034107,-570.0,0.00016712,2]
[363250877,1748649034117,-1116.16,0.00016712,2]
[363250878,1748649034126,-430.0,0.00016712,2]
[363250879,1748649034135,-431.42860374,0.00016712,2]
[363250880,1748649034145,-1746.73,0.00016712,2]
[363250881,1748649034155,-430.0,0.00016712,2]
[363250882,1748649034164,-430.0,0.00016712,2]
[363250883,1748649034175,-430.0,0.00016712,2]
[363250884,1748649034186,-440.64514429,0.00016712,2]
[363250885,1748649034197,-1566.71,0.00016712,2]
[363250886,1748649034208,-430.0,0.00016712,2]
[363250887,1748649034218,-2281.21,0.00016712,2]
[363250888,1748649034228,-1221.81,0.00016712,2]
[363250889,1748649034239,-430.0,0.00016712,2]
[363250890,1748649034248,-430.0,0.00016712,2]
[363250891,1748649034259,-430.0,0.00016712,2]
[363250892,1748649034269,-430.0,0.00016712,2]
[363250893,1748649034280,-1735.19,0.00016712,2]
[363250894,1748649034290,-999.49,0.00016712,2]
[363250895,1748649034304,-430.0,0.00016712,2]
[363250896,1748649034315,-430.0,0.00016712,2]
[363250897,1748649034326,-838.84,0.00016712,2]
[363250898,1748649034336,-450.19,0.00016712,2]
[363250899,1748649034346,-430.0,0.00016712,2]
[363250900,1748649034356,-430.0,0.00016712,2]
[363250901,1748649034366,-815.82,0.00016712,2]
[363250902,1748649034379,-430.0,0.00016712,2]
[363250903,1748649034389,-450.96,0.00016712,2]
[363250904,1748649034399,-623.08,0.00016712,2]
[363250905,1748649034410,-1724.05,0.00016712,2]
[363250906,1748649034420,-430.0,0.00016712,2]
[363250907,1748649034431,-430.0,0.00016712,2]
[363250908,1748649034441,-430.0,0.00016712,2]
[363250909,1748649034452,-1945.89,0.00016712,2]
[363250910,1748649034464,-488.2,0.00016712,2]
[363250911,1748649034474,-1115.63,0.00016712,2]
[363250912,1748649034484,-430.0,0.00016712,2]
[363250913,1748649034495,-430.0,0.00016712,2]
[363250914,1748649034505,-779.58,0.00016712,2]
[363250915,1748649034515,-989.92,0.00016712,2]
[363250916,1748649034525,-888.15,0.00016712,2]
[363250917,1748649034535,-622.05,0.00016712,2]
[363250918,1748649034548,-430.0,0.00016712,2]
[363250919,1748649034559,-430.0,0.00016712,2]
[363250920,1748649034569,-430.0,0.00016712,2]
[363250921,1748649034579,-3106.84,0.00016712,2]
[363250922,1748649034589,-430.0,0.00016712,2]
[363250923,1748649034600,-430.0,0.00016712,2]
[363250924,1748649034610,-1221.03,0.00016712,2]
[363250925,1748649034620,-430.0,0.00016712,2]
[363250926,1748649034631,-430.0,0.00016712,2]
[363250927,1748649034641,-430.0,0.00016712,2]
[363250928,1748649034651,-850.49,0.00016712,2]
[363250929,1748649034662,-430.0,0.00016712,2]
[363250930,1748649034672,-430.0,0.00016712,2]
[363250931,1748649034682,-430.0,0.00016712,2]
[363250932,1748649034693,-530.0,0.00016712,2]
[363250933,1748649034703,-430.0,0.00016712,2]
[363250934,1748649034713,-1063.45,0.00016712,2]
[363250935,1748649034723,-430.0,0.00016712,2]
[363250936,1748649034733,-1315.01375696,0.00016872,2]
[363250937,1748649034743,-4738.85766992,0.000169,2]
[363250938,1748649034752,-2500.0,0.00016972,2]
[363250939,1748649034762,-430.0,0.00016986,2]
[363250940,1748649034771,-430.0,0.00016986,2]
[363250941,1748649034780,-430.0,0.00016986,2]
[363250942,1748649034789,-430.0,0.00016986,2]
[363250943,1748649034800,-468.22,0.00016986,2]
[363250944,1748649034810,-430.0,0.00016986,2]
[363250945,1748649034820,-430.0,0.00016986,2]
[363250946,1748649034830,-1116.16,0.00016986,2]
[363250947,1748649034840,-430.0,0.00016986,2]
[363250948,1748649034849,-1746.73,0.00016986,2]
[363250949,1748649034859,-430.0,0.00016986,2]
[363250950,1748649034869,-430.0,0.00016986,2]
[363250951,1748649034878,-1566.71,0.00016986,2]
[363250952,1748649034888,-430.0,0.00016986,2]
[363250953,1748649034899,-2281.21,0.00016986,2]
[363250954,1748649034909,-1221.81,0.00016986,2]
[363250955,1748649034919,-430.0,0.00016986,2]
[363250956,1748649034929,-430.0,0.00016986,2]
[363250957,1748649034939,-430.0,0.00016986,2]
[363250958,1748649034949,-1735.19,0.00016986,2]
[363250959,1748649034959,-999.49,0.00016986,2]
[363250960,1748649034968,-430.0,0.00016986,2]
[363250961,1748649034977,-430.0,0.00016986,2]
[363250962,1748649034986,-838.84,0.00016986,2]
[363250963,1748649034995,-450.19,0.00016986,2]
[363250964,1748649035005,-430.0,0.00016986,2]
[363250965,1748649035014,-430.0,0.00016986,2]
[363250966,1748649035023,-815.82,0.00016986,2]
[363250967,1748649035032,-354.39776051,0.00016986,2]
[363250968,1748649035041,-450.96,0.00016986,2]
[363250969,1748649035051,-623.08,0.00016986,2]
[363250970,1748649035060,-1724.05,0.00016986,2]
[363250971,1748649035069,-430.0,0.00016986,2]
[363250972,1748649035211,-430.0,0.00016986,2]
[363250973,1748649035227,-1945.89,0.00016986,2]
[363250974,1748649035236,-488.2,0.00016986,2]
[363250975,1748649035245,-1115.63,0.00016986,2]
[363250976,1748649035255,-430.0,0.00016986,2]
[363250977,1748649035263,-430.0,0.00016986,2]
[363250978,1748649035272,-779.58,0.00016986,2]
[363250979,1748649035282,-989.92,0.00016986,2]
[363250980,1748649035291,-888.15,0.00016986,2]
[363250981,1748649035301,-622.05,0.00016986,2]
[363250982,1748649035310,-430.0,0.00016986,2]
[363250983,1748649035319,-430.0,0.00016986,2]
[363250984,1748649035329,-430.0,0.00016986,2]
[363250985,1748649035338,-3106.84,0.00016986,2]
[363250986,1748649035347,-430.0,0.00016986,2]
[363250987,1748649035356,-430.0,0.00016986,2]
[363250988,1748649035365,-1221.03,0.00016986,2]
[363250989,1748649035377,-430.0,0.00016986,2]
[363250990,1748649035385,-430.0,0.00016986,2]
[363250991,1748649035395,-430.0,0.00016986,2]
[363250992,1748649035404,-850.49,0.00016986,2]
[363250993,1748649035414,-430.0,0.00016986,2]
[363250994,1748649035424,-430.0,0.00016986,2]
[363250995,1748649035434,-430.0,0.00016986,2]
[363250996,1748649035443,-459.11,0.00016986,2]
[363250997,1748649035453,-1063.45,0.00016986,2]
[363250998,1748649035462,-430.0,0.00016986,2]
[363250999,1748649035472,-420.0,0.00017006,2]
[363251000,1748649035481,-420.0,0.00017006,2]
[363251001,1748649035490,-500.0,0.00017042,2]
[363251002,1748649035499,-500.0,0.00017071,2]
[363251003,1748649035509,-500.0,0.00017071,2]
[363251004,1748649035519,-1000.0,0.00017108,2]
[363251005,1748649035528,-500.0,0.00017108,2]
[363251006,1748649035537,-500.0,0.00017108,2]
[363251007,1748649035549,-396.94184363,0.00017127,2]
[363251008,1748649035558,-500.0,0.00017127,2]
[363251009,1748649035567,-500.0,0.00017127,2]
[363251010,1748649035576,-500.0,0.00017127,2]
[363251011,1748649035584,-500.0,0.00017127,2]
[363251012,1748649035593,-500.0,0.00017127,2]
[363251013,1748649035602,-500.0,0.00017127,2]
[363251014,1748649035612,-500.0,0.00017127,2]
[363251015,1748649035621,-500.0,0.00017127,2]
[363251016,1748649035630,-500.0,0.00017127,2]
[363251017,1748649035639,-314.81381568,0.0001715,2]
[363251018,1748649035648,-160.0,0.0001715,2]
[363251019,1748649035657,-160.0,0.0001715,2]
[363251020,1748649035665,-160.0,0.0001715,2]
[363251021,1748649035674,-212.7380601,0.0001715,2]
[363251022,1748649035683,-160.0,0.0001715,2]
[363251023,1748649035692,-423.39538199,0.0001715,2]
[363251024,1748649035701,-160.0,0.0001715,2]
[363251025,1748649035710,-160.0,0.0001715,2]
[363251026,1748649035719,-842.5625,0.0001715,2]
[363251027,1748649035728,-160.0,0.0001715,2]
[363251028,1748649035737,-229.30959854,0.0001715,2]
[363251029,1748649035746,-12663.11115519,0.0001715,2]
[363251030,1748649035755,-210.8,0.00017176,2]
[363251031,1748649035764,-210.8,0.00017176,2]
[363251032,1748649035774,-210.8,0.00017176,2]
[363251033,1748649035783,-210.8,0.00017176,2]
[363251034,1748649035792,-210.8,0.00017176,2]
[363251035,1748649035803,-210.8,0.00017176,2]
[363251036,1748649035812,-210.8,0.00017176,2]
[363251037,1748649035821,-210.8,0.00017176,2]
[363251038,1748649035830,-210.8,0.00017176,2]
[363251039,1748649035844,-4738.85766968,0.00017176,2]
[363251040,1748649035854,-450.0,0.0001726,2]
[363251041,1748649035863,-577.78,0.0001726,2]
[363251042,1748649035872,-430.0,0.0001726,2]
[363251043,1748649035882,-430.0,0.0001726,2]
[363251044,1748649035891,-430.0,0.0001726,2]
[363251045,1748649035901,-1116.16,0.0001726,2]
[363251046,1748649035910,-430.0,0.0001726,2]
[363251047,1748649035919,-1746.73,0.0001726,2]
[363251048,1748649035929,-430.0,0.0001726,2]
[363251049,1748649035939,-430.0,0.0001726,2]
[363251050,1748649035949,-1566.71,0.0001726,2]
[363251051,1748649035959,-430.0,0.0001726,2]
[363251052,1748649035969,-2281.21,0.0001726,2]
[363251053,1748649035979,-1221.81,0.0001726,2]
[363251054,1748649035988,-430.0,0.0001726,2]
[363251055,1748649035999,-430.0,0.0001726,2]
[363251056,1748649036009,-1735.19,0.0001726,2]
[363251057,1748649036019,-999.49,0.0001726,2]
[363251058,1748649036028,-430.0,0.0001726,2]
[363251059,1748649036037,-430.0,0.0001726,2]
[363251060,1748649036046,-838.84,0.0001726,2]
[363251061,1748649036057,-450.19,0.0001726,2]
[363251062,1748649036067,-430.0,0.0001726,2]
[363251063,1748649036076,-430.0,0.0001726,2]
[363251064,1748649036086,-815.82,0.0001726,2]
[363251065,1748649036095,-450.96,0.0001726,2]
[363251066,1748649036104,-623.08,0.0001726,2]
[363251067,1748649036114,-1724.05,0.0001726,2]
[363251068,1748649036123,-430.0,0.0001726,2]
[363251069,1748649036134,-430.0,0.0001726,2]
[363251070,1748649036143,-1945.89,0.0001726,2]
[363251071,1748649036152,-488.2,0.0001726,2]
[363251072,1748649036161,-1115.63,0.0001726,2]
[363251073,1748649036170,-430.0,0.0001726,2]
[363251074,1748649036179,-779.58,0.0001726,2]
[363251075,1748649036189,-430.0,0.0001726,2]
[363251076,1748649036198,-989.92,0.0001726,2]
[363251077,1748649036207,-888.15,0.0001726,2]
[363251078,1748649036216,-622.05,0.0001726,2]
[363251079,1748649036226,-430.0,0.0001726,2]
[363251080,1748649036234,-375.54840054,0.0001726,2]
[363251081,1748649036243,-430.0,0.0001726,2]
[363251082,1748649036253,-3106.84,0.0001726,2]
[363251083,1748649036262,-186.68,0.0001726,2]
[363251084,1748649036272,-1221.03,0.0001726,2]
[363251085,1748649036281,-430.0,0.0001726,2]
[363251086,1748649036291,-430.0,0.0001726,2]
[363251087,1748649036301,-430.0,0.0001726,2]
[363251088,1748649036312,-850.49,0.0001726,2]
[363251089,1748649036321,-430.0,0.0001726,2]
[363251090,1748649036330,-430.0,0.0001726,2]
[363251091,1748649036339,-430.0,0.0001726,2]
[363251092,1748649036349,-1063.45,0.0001726,2]
[363251093,1748649036358,-430.0,0.0001726,2]
[363251094,1748649036368,-1315.01375696,0.00017379,2]
[363251095,1748649036380,-630.40482041,0.00017401,2]
[363251096,1748649036390,-4738.85766968,0.00017452,2]
[363251097,1748649036399,-430.0,0.00017534,2]
[363251098,1748649036411,-430.0,0.00017534,2]
[363251099,1748649036420,-430.0,0.00017534,2]
[363251100,1748649036430,-1116.16,0.00017534,2]
[363251101,1748649036439,-430.0,0.00017534,2]
[363251102,1748649036450,-1746.73,0.00017534,2]
[363251103,1748649036460,-430.0,0.00017534,2]
[363251104,1748649036469,-430.0,0.00017534,2]
[363251105,1748649036479,-1566.71,0.00017534,2]
[363251106,1748649036489,-430.0,0.00017534,2]
[363251107,1748649036498,-2281.21,0.00017534,2]
[363251108,1748649036508,-1221.81,0.00017534,2]
[363251109,1748649036518,-430.0,0.00017534,2]
[363251110,1748649036528,-430.0,0.00017534,2]
[363251111,1748649036537,-1735.19,0.00017534,2]
[363251112,1748649036547,-999.49,0.00017534,2]
[363251113,1748649036558,-430.0,0.00017534,2]
[363251114,1748649036569,-430.0,0.00017534,2]
[363251115,1748649036579,-838.84,0.00017534,2]
[363251116,1748649036588,-450.19,0.00017534,2]
[363251117,1748649036598,-435.96235828,0.00017534,2]
[363251118,1748649036608,-430.0,0.00017534,2]
[363251119,1748649036618,-815.82,0.00017534,2]
[363251120,1748649036628,-450.96,0.00017534,2]
[363251121,1748649036637,-623.08,0.00017534,2]
[363251122,1748649036647,-1724.05,0.00017534,2]
[363251123,1748649036657,-430.0,0.00017534,2]
[363251124,1748649036667,-430.0,0.00017534,2]
[363251125,1748649036676,-1945.89,0.00017534,2]
[363251126,1748649036686,-488.2,0.00017534,2]
[363251127,1748649036696,-1115.63,0.00017534,2]
[363251128,1748649036705,-430.0,0.00017534,2]
[363251129,1748649036715,-779.58,0.00017534,2]
[363251130,1748649036724,-430.0,0.00017534,2]
[363251131,1748649036734,-989.92,0.00017534,2]
[363251132,1748649036743,-888.15,0.00017534,2]
[363251133,1748649036754,-622.05,0.00017534,2]
[363251134,1748649036763,-430.0,0.00017534,2]
[363251135,1748649036774,-430.0,0.00017534,2]
[363251136,1748649036783,-3106.84,0.00017534,2]
[363251137,1748649036793,-1221.03,0.00017534,2]
[363251138,1748649036805,-430.0,0.00017534,2]
[363251139,1748649036815,-430.0,0.00017534,2]
[363251140,1748649036825,-430.0,0.00017534,2]
[363251141,1748649036835,-850.49,0.00017534,2]
[363251142,1748649036845,-430.0,0.00017534,2]
[363251143,1748649036854,-430.0,0.00017534,2]
[363251144,1748649036864,-430.0,0.00017534,2]
[363251145,1748649036874,-1063.45,0.00017534,2]
[363251146,1748649036884,-430.0,0.00017534,2]
[363251147,1748649036894,-500.0,0.0001759,2]
[363251148,1748649036903,-907.67132712,0.00017619,2]
[363251149,1748649036913,-329.74251551,0.00017619,2]
[363251150,1748649036924,-2000.0,0.00017656,2]
[363251151,1748649036934,-1000.0,0.00017656,2]
[363251152,1748649036943,-1000.0,0.00017675,2]
[363251153,1748649036953,-500.0,0.00017675,2]
[363251154,1748649036963,-1000.0,0.00017675,2]
[363251155,1748649036973,-1000.0,0.00017675,2]
[363251156,1748649036983,-500.0,0.00017675,2]
[363251157,1748649036992,-1000.0,0.00017675,2]
[363251158,1748649037003,-1000.0,0.00017675,2]
[363251159,1748649037014,-5000.0,0.00017697,2]
[363251160,1748649037024,-4738.85766968,0.00017728,2]
[363251161,1748649037033,-430.0,0.00017808,2]
[363251162,1748649037042,-430.0,0.00017808,2]
[363251163,1748649037054,-430.0,0.00017808,2]
[363251164,1748649037063,-1116.16,0.00017808,2]
[363251165,1748649037073,-430.0,0.00017808,2]
[363251166,1748649037082,-1746.73,0.00017808,2]
[363251167,1748649037092,-430.0,0.00017808,2]
[363251168,1748649037100,-430.0,0.00017808,2]
[363251169,1748649037111,-1566.71,0.00017808,2]
[363251170,1748649037120,-430.0,0.00017808,2]
[363251171,1748649037129,-2281.21,0.00017808,2]
[363251172,1748649037139,-1221.81,0.00017808,2]
[363251173,1748649037148,-430.0,0.00017808,2]
[363251174,1748649037158,-430.0,0.00017808,2]
[363251175,1748649037169,-1735.19,0.00017808,2]
[363251176,1748649037179,-999.49,0.00017808,2]
[363251177,1748649037189,-430.0,0.00017808,2]
[363251178,1748649037199,-430.0,0.00017808,2]
[363251179,1748649037208,-838.84,0.00017808,2]
[363251180,1748649037217,-450.19,0.00017808,2]
[363251181,1748649037227,-430.0,0.00017808,2]
[363251182,1748649037236,-815.82,0.00017808,2]
[363251183,1748649037245,-450.96,0.00017808,2]
[363251184,1748649037255,-623.08,0.00017808,2]
[363251185,1748649037264,-1400.37733768,0.00017808,2]
[363251219,1748649038273,-500.0,0.00016431,2]
[363251221,1748649038282,-500.0,0.00016431,2]
[363251223,1748649038291,-500.0,0.00016431,2]
[363251226,1748649038300,-444.8915898,0.00016431,2]
[363251227,1748649038310,-500.0,0.00016431,2]
[363251229,1748649038319,-500.0,0.00016431,2]
[363251231,1748649038328,-500.0,0.00016431,2]
[363251234,1748649038337,-500.0,0.00016431,2]
[363251236,1748649038345,-500.0,0.00016431,2]
[363251238,1748649038354,-500.0,0.00016431,2]
[363251240,1748649038363,-323.67266232,0.00017808,2]
[363251242,1748649038373,-430.0,0.00017808,2]
[363251243,1748649038383,-430.0,0.00017808,2]
[363251246,1748649038393,-1945.89,0.00017808,2]
[363251247,1748649038402,-488.2,0.00017808,2]
[363251249,1748649038410,-1115.63,0.00017808,2]
[363251251,1748649038419,-430.0,0.00017808,2]
[363251253,1748649038428,-430.0,0.00017808,2]
[363251255,1748649038437,-779.58,0.00017808,2]
[363251257,1748649038446,-989.92,0.00017808,2]
[363251259,1748649038456,-888.15,0.00017808,2]
[363251262,1748649038466,-622.05,0.00017808,2]
[363251263,1748649038475,-430.0,0.00017808,2]
[363251266,1748649038485,-430.0,0.00017808,2]
[363251267,1748649038494,-3106.84,0.00017808,2]
[363251269,1748649038504,-1221.03,0.00017808,2]
[363251271,1748649038513,-430.0,0.00017808,2]
[363251274,1748649038522,-430.0,0.00017808,2]
[363251276,1748649038531,-850.49,0.00017808,2]
[363251278,1748649038540,-430.0,0.00017808,2]
[363251280,1748649038549,-430.0,0.00017808,2]
[363251281,1748649038560,-430.0,0.00017808,2]
[363251283,1748649038569,-1063.45,0.00017808,2]
[363251285,1748649038578,-430.0,0.00017808,2]
[363251287,1748649038586,-207.4,0.00017837,2]
[363251288,1748649038595,-300.0,0.00017837,2]
[363251289,1748649038604,-300.0,0.00017837,2]
[363251290,1748649038614,-300.0,0.00017837,2]
[363251291,1748649038622,-300.0,0.00017837,2]
[363251292,1748649038632,-300.0,0.00017837,2]
[363251293,1748649038641,-5000.0,0.00017837,2]
[363251294,1748649038650,-300.0,0.00017837,2]
[363251295,1748649038660,-300.0,0.00017837,2]
[363251296,1748649038669,-300.0,0.00017837,2]
[363251297,1748649038679,-300.0,0.00017837,2]
[363251298,1748649038687,-300.0,0.00017837,2]
[363251299,1748649038696,-300.0,0.00017837,2]
[363251300,1748649038705,-300.0,0.00017837,2]
[363251301,1748649038714,-300.0,0.00017837,2]
[363251302,1748649038722,-300.0,0.00017837,2]
[363251303,1748649038731,-300.0,0.00017837,2]
[363251308,1748649038868,-1315.01375696,0.00017886,2]
[363251310,1748649038877,-998.63634442,0.00017989,5]
[363251312,1748649038886,-162.56,0.00018,2]
[363251314,1748649038895,-4738.85766968,0.00018003,2]
[363251316,1748649038904,-2500.0,0.00018068,2]
[363251318,1748649038913,-510.0,0.00018082,2]
[363251320,1748649038922,-430.0,0.00018082,2]
[363251322,1748649038931,-1116.16,0.00018082,2]
[363251324,1748649038940,-541.10981437,0.00018082,2]
[363251326,1748649038949,-1746.73,0.00018082,2]
[363251328,1748649038958,-430.0,0.00018082,2]
[363251330,1748649038968,-430.0,0.00018082,2]
[363251332,1748649038977,-1566.71,0.00018082,2]
[363251334,1748649038986,-430.0,0.00018082,2]
[363251336,1748649038994,-2281.21,0.00018082,2]
[363251338,1748649039003,-1221.81,0.00018082,2]
[363251340,1748649039012,-430.0,0.00018082,2]
[363251342,1748649039021,-430.0,0.00018082,2]
[363251344,1748649039030,-1735.19,0.00018082,2]
[363251346,1748649039039,-999.49,0.00018082,2]
[363251348,1748649039048,-430.0,0.00018082,2]
[363251351,1748649039059,-430.0,0.00018082,2]
[363251352,1748649039068,-838.84,0.00018082,2]
[363251354,1748649039077,-450.19,0.00018082,2]
[363251356,1748649039086,-430.0,0.00018082,2]
[363251358,1748649039094,-815.82,0.00018082,2]
[363251360,1748649039103,-450.96,0.00018082,2]
[363251362,1748649039112,-623.08,0.00018082,2]
[363251364,1748649039121,-1724.05,0.00018082,2]
[363251367,1748649039130,-430.0,0.00018082,2]
[363251369,1748649039139,-430.0,0.00018082,2]
[363251370,1748649039147,-1945.89,0.00018082,2]
[363251372,1748649039156,-488.2,0.00018082,2]
[363251375,1748649039165,-1115.63,0.00018082,2]
[363251376,1748649039174,-430.0,0.00018082,2]
[363251378,1748649039183,-430.0,0.00018082,2]
[363251381,1748649039192,-779.58,0.00018082,2]
[363251382,1748649039201,-989.92,0.00018082,2]
[363251384,1748649039210,-888.15,0.00018082,2]
[363251386,1748649039219,-622.05,0.00018082,2]
[363251388,1748649039227,-430.0,0.00018082,2]
[363251390,1748649039236,-430.0,0.00018082,2]
[363251392,1748649039245,-3106.84,0.00018082,2]
[363251394,1748649039254,-430.0,0.00018082,2]
[363251396,1748649039264,-1221.03,0.00018082,2]
[363251398,1748649039272,-430.0,0.00018082,2]
[363251400,1748649039281,-850.49,0.00018082,2]
[363251402,1748649039290,-430.0,0.00018082,2]
[363251404,1748649039299,-430.0,0.00018082,2]
[363251406,1748649039310,-430.0,0.00018082,2]
[363251408,1748649039319,-1063.45,0.00018082,2]
[363251410,1748649039328,-430.0,0.00018082,2]
[363251412,1748649039337,-156.35479342,0.0001811,2]
[363251414,1748649039346,-151.0,0.000182,2]
[363251416,1748649039354,-3000.0,0.00018204,2]
[363251418,1748649039363,-1191.26979472,0.00018204,2]
[363251420,1748649039375,-156.35479342,0.00018219,2]
[363251422,1748649039387,-1500.0,0.00018223,2]
[363251424,1748649039396,-1500.0,0.00018223,2]
[363251426,1748649039405,-500.0,0.00018223,2]
[363251428,1748649039414,-1500.0,0.00018223,2]
[363251430,1748649039423,-1500.0,0.00018223,2]
[363251432,1748649039432,-4738.85766968,0.00018279,2]
[363251434,1748649039441,-151.0,0.000183,2]
[363251436,1748649039452,-156.35479342,0.00018301,2]
[363251438,1748649039461,-430.0,0.00018356,2]
[363251440,1748649039470,-1116.16,0.00018356,2]
[363251442,1748649039479,-1746.73,0.00018356,2]
[363251444,1748649039488,-430.0,0.00018356,2]
[363251446,1748649039498,-430.0,0.00018356,2]
[363251448,1748649039507,-1566.71,0.00018356,2]
[363251450,1748649039516,-430.0,0.00018356,2]
[363251452,1748649039525,-2281.21,0.00018356,2]
[363251454,1748649039535,-1221.81,0.00018356,2]
[363251456,1748649039545,-430.0,0.00018356,2]
[363251459,1748649039555,-430.0,0.00018356,2]
[363251461,1748649039564,-1735.19,0.00018356,2]
[363251463,1748649039573,-999.49,0.00018356,2]
[363251464,1748649039583,-430.0,0.00018356,2]
[363251466,1748649039592,-838.84,0.00018356,2]
[363251469,1748649039601,-450.19,0.00018356,2]
[363251471,1748649039610,-430.0,0.00018356,2]
[363251473,1748649039619,-815.82,0.00018356,2]
[363251474,1748649039628,-450.96,0.00018356,2]
[363251476,1748649039637,-623.08,0.00018356,2]
[363251478,1748649039646,-1724.05,0.00018356,2]
[363251480,1748649039655,-430.0,0.00018356,2]
[363251482,1748649039665,-430.0,0.00018356,2]
[363251484,1748649039673,-1945.89,0.00018356,2]
[363251486,1748649039682,-488.2,0.00018356,2]
[363251488,1748649039691,-1115.63,0.00018356,2]
[363251490,1748649039700,-430.0,0.00018356,2]
[363251492,1748649039709,-430.0,0.00018356,2]
[363251494,1748649039718,-779.58,0.00018356,2]
[363251496,1748649039727,-989.92,0.00018356,2]
[363251498,1748649039736,-888.15,0.00018356,2]
[363251500,1748649039745,-622.05,0.00018356,2]
[363251503,1748649039756,-430.0,0.00018356,2]
[363251506,1748649039765,-430.0,0.00018356,2]
[363251508,1748649039774,-3106.84,0.00018356,2]
[363251510,1748649039783,-430.0,0.00018356,2]
[363251512,1748649039791,-1221.03,0.00018356,2]
[363251514,1748649039800,-324.99143248,0.00018356,2]
[363251516,1748649039811,-850.49,0.00018356,2]
[363251518,1748649039820,-443.73837268,0.00018356,2]
[363251520,1748649039829,-430.0,0.00018356,2]
[363251522,1748649039838,-430.0,0.00018356,2]
[363251525,1748649039847,-1063.45,0.00018356,2]
[363251528,1748649039857,-430.0,0.00018356,2]
[363251530,1748649039866,-5000.0,0.00018385,2]
[363251533,1748649039875,-1315.01375696,0.00018393,2]
[363251536,1748649039886,-151.0,0.00018399,2]
[363251538,1748649039896,-151.0,0.000184,2]
[363251540,1748649039905,-156.35479342,0.00018411,2]
[363251542,1748649039915,-733.997,0.00018446,2]
[363251544,1748649039924,-172.918,0.00018446,2]